[Event "MCCT Oslo Esports Cup 2022"]
[Site "Oslo"]
[Date "2022.04.20"]
[Round "7.3"]
[White "Le, Quang Liem"]
[Black "Van Foreest, Jorden"]
[Result "1/2-1/2"]
[ECO "D19"]
[WhiteElo "2709"]
[BlackElo "2714"]
[Annotator "TA"]
[PlyCount "120"]
[EventDate "2022.04.14"]
[EventType "tourn"]
[EventCountry "NOR"]
[SourceTitle "playchess.com"]
[Source "ChessBase"]
[SourceQuality "1"]
[TimeControl "900+10"]

{[%evp 22,120,25,17,33,0,34,25,70,31,66,72,100,119,111,114,127,80,86,83,83,85,85,85,87,78,114,114,111,113,101,95,94,86,78,86,79,78,103,82,123,124,149,101,158,154,269,234,227,231,208,223,204,168,154,93,282,0,0,0,10,0,899,958,797,0,0,0,0,0,0,0,0,0,0,0,0,0,0,-734,0,0,0,0,0,0,0,0,0,0,0,0,0,0,0,0,0,0,0,0,0]} 1. d4 {[%emt 0:00:00]} d5 {[%emt 0:00:00]} 2. c4 {[%emt 0:00:02]} c6 {[%emt 0:00:02]} 3. Nf3 {[%emt 0:00:03]} Nf6 {[%emt 0:00:03]} 4. Nc3 {[%emt 0:00:04]} dxc4 {[%emt 0:00:02]} 5. a4 {[%emt 0:00:01]} Bf5 {[%emt 0:00:07]} 6. e3 {[%emt 0:00:01][%cal Be2e3,Be3e4][%mdl 32]} e6 {[%emt 0:00:06]} 7. Bxc4 {[%emt 0:00:18]} Bb4 {[%emt 0:00:11]} 8. O-O {[%emt 0:00:01]} h6 {[%emt 0:00:02]} 9. Qe2 {[%emt 0:00:51]} O-O {[%emt 0:00:07]} 10. e4 {[%emt 0:00:05]} Bg6 {[%emt 0:00:01]} 11. Bd3 {[%emt 0:00:37]} Nbd7 {[%emt 0:00:52]} 12. Rd1 {[%emt 0:00:37]} Re8 {[%emt 0:00:46] D19: Slav Defence: 5 a4 Bf5 6 e3: Main line with 9 Qe2.} (12... Bh5 {with more complications.} 13. e5 Nd5 14. Qe4 f5) 13. Bf4 {[%emt 0:01:16]} Rc8 {[%emt 0:00:58]} 14. h3 {[%emt 0:00:11]} Qa5 {[%emt 0:00:17] White has an edge.} 15. Nd2 {[%emt 0:03:22] [#]} Qd8 $146 {[%emt 0:00:24]} ({Predecessor:} 15... Nh5 16. Bh2 Qg5 17. Nf3 Nf4 18. Bxf4 Qxf4 19. e5 Bh5 20. Be4 f5 21. g3 Bxf3 22. Bxf3 Qg5 23. a5 {½-½ (23) Henrichs,T (2481)-Paehtz,E (2420) Bad Woerishofen 2008}) 16. Nc4 {[%emt 0:00:20]} Nf8 {[%emt 0:02:06]} 17. a5 {[%emt 0:00:38]} Bh5 {[%emt 0:00:37]} (17... Qxd4 $2 18. Bc2 Bxc3 19. Rxd4 Bxd4 20. Nd6 $18) 18. g4 {[%emt 0:00:10]} Bg6 {[%emt 0:00:01]} 19. Na4 {[%emt 0:01:10]} (19. Bg3 $142) 19... Qe7 $16 {[%emt 0:01:42]} (19... Qxd4 $2 20. Bb1 e5 21. Rxd4 $18) 20. Nc5 {[%emt 0:00:31] Threatens to win with Bd6.} Red8 {[%emt 0:00:06] Inhibits Bd6.} 21. Qe3 {[%emt 0:00:48] White is much more active.} Rxd4 {[%emt 0:00:13]} 22. Qxd4 {[%emt 0:00:15]} Bxc5 {[%emt 0:00:02] [#]} 23. Bd6 $1 {[%emt 0:00:12]} Bxd4 {[%emt 0:00:14]} 24. Bxe7 {[%emt 0:00:02]} e5 {[%emt 0:00:02]} 25. Nd6 {[%emt 0:01:10]} Rc7 {[%emt 0:00:02]} 26. Bxf6 {[%emt 0:00:01]} gxf6 {[%emt 0:00:00]} 27. Bc4 {[%emt 0:00:41]} Ne6 {[%emt 0:00:10]} 28. Ne8 {[%emt 0:00:49]} Re7 {[%emt 0:01:05]} 29. Nxf6+ {[%emt 0:00:01]} Kg7 {[%emt 0:00:00]} 30. Bxe6 {[%emt 0:00:01]} Kxf6 {[%emt 0:00:03]} 31. Bf5 {[%emt 0:00:02]} Bxf5 {[%emt 0:00:39]} 32. gxf5 {[%emt 0:00:00][%mdl 4096] Endgame KRR-KRB} (32. exf5 $142 h5 33. Rd2 (33. gxh5 Kxf5 34. Ra3 Kg5 $16)) 32... Kg5 {[%emt 0:00:09]} (32... Bxb2 $142 33. h4 Bd4) 33. Ra3 {[%emt 0:01:11]} c5 {[%emt 0:03:00]} (33... Kf4 $16) 34. Rg3+ $18 {[%emt 0:00:16]} Kf6 {[%emt 0:00:01]} 35. Rc1 {[%emt 0:01:30]} b5 {[%emt 0:00:35]} 36. axb6 {[%emt 0:00:04]} axb6 {[%emt 0:00:01]} 37. Rb3 {[%emt 0:00:07]} Rb7 {[%emt 0:00:02]} 38. Ra1 {[%emt 0:00:30]} ({White should try} 38. h4) 38... b5 $2 {[%emt 0:00:48]} (38... c4 $16 39. Rb5 Kg5) 39. Ra6+ $2 {[%emt 0:00:11]} (39. Rg3 $18 {Strongly threatening Ra6+.} Rb6 40. Rg8) 39... Kg5 $11 {[%emt 0:00:01]} 40. Rf3 {[%emt 0:01:25]} Bxb2 {[%emt 0:00:10]} 41. f6 {[%emt 0:00:02] Ra8 is the strong threat.} c4 $2 {[%emt 0:00:41][%mdl 8192]} (41... b4 $11) 42. Ra8 $18 {[%emt 0:00:05]} Bc1 {[%emt 0:00:37] [#]} 43. Rg8+ $2 {[%emt 0:00:17]} ({White has to play} 43. Rf5+ $1 $18 Kh4 44. Rg8 (44. Rxe5 Kxh3 45. Re7 Rb6 $18)) 43... Kh5 $11 {[%emt 0:00:25] White must now prevent ...b4.} 44. Rf5+ {[%emt 0:00:03]} Bg5 $1 {[%emt 0:00:00]} 45. Rxe5 {[%emt 0:00:43]} b4 {[%emt 0:00:40]} 46. f4 $1 {[%emt 0:01:18]} b3 {[%emt 0:01:02]} 47. Rh8 {[%emt 0:00:07] Threatening mate with Rxg5+.} (47. fxg5 $2 b2 48. Kh2 b1=Q $19) 47... Kg6 {[%emt 0:00:21][%csl LRf4,LRf6] ( -> ...b2)} 48. fxg5 {[%emt 0:00:01]} hxg5 {[%emt 0:00:07] Hoping for ...b2.} 49. Rg8+ $1 {[%emt 0:00:04]} Kxf6 {[%emt 0:00:11]} 50. Rgxg5 {[%emt 0:00:34][%mdl 8192] [#]} (50. Rf5+ $11 Ke7 51. Re5+ (51. Rgxg5 $2 c3 $19) (51. Rfxg5 $2 b2 $19) 51... Kf6 52. Rf5+ (52. Rexg5 b2 $17) 52... Ke7 53. Re5+ (53. Rgxg5 $2 c3 $19) (53. Rfxg5 $2 b2 $19) 53... Kf6) 50... b2 $2 {[%emt 0:00:10]} ({Better is} 50... c3 $1 $19 51. Ref5+ Ke6) 51. Rgf5+ {[%emt 0:00:13] The position is equal.} Kg7 {[%emt 0:00:12] aiming for ...c3.} (51... Kg6 $5 52. Rf1 (52. Rg5+ $2 Kh6 $19) 52... Ra7 $11) 52. Rf1 $1 {[%emt 0:00:02]} ({But not} 52. Rg5+ $2 Kf8 53. Rb5 Rxb5 54. Rxb5 c3 $19) 52... b1=R {[%emt 0:00:13]} 53. Rxb1 {[%emt 0:00:09]} Rxb1+ {[%emt 0:00:02] KR-KR} 54. Kf2 {[%emt 0:00:00]} Rb2+ {[%emt 0:00:05]} 55. Ke3 {[%emt 0:00:06]} Rb3+ {[%emt 0:00:02]} 56. Kd4 {[%emt 0:00:02]} Rxh3 {[%emt 0:00:01]} 57. Kxc4 {[%emt 0:00:01]} Kf6 {[%emt 0:00:01]} 58. Rf5+ {[%emt 0:00:01]} Ke6 {[%emt 0:00:00]} 59. Kd4 {[%emt 0:00:00]} Ra3 {[%emt 0:00:02]} 60. Re5+ {[%emt 0:00:03]} Kf6 {[%emt 0:00:02] White used his chance.  Weighted Error Value: White=0.34/Black=0.25 (precise)} 1/2-1/2

[Event "MCCT Oslo Esports Cup 2022"]
[Site "Oslo"]
[Date "2022.04.20"]
[Round "7.3"]
[White "Praggnanandhaa R"]
[Black "Giri, Anish"]
[Result "0-1"]
[ECO "D41"]
[WhiteElo "2624"]
[BlackElo "2773"]
[Annotator "TA"]
[PlyCount "62"]
[EventDate "2022.04.14"]
[EventType "tourn"]
[EventCountry "NOR"]
[SourceTitle "playchess.com"]
[Source "ChessBase"]
[SourceQuality "1"]
[TimeControl "900+10"]

{[%evp 11,62,39,18,20,17,-16,37,39,25,18,10,17,15,35,29,2,22,12,14,15,35,13,23,10,7,22,4,0,0,-80,-89,-329,-329,-326,-322,-311,-283,-282,-281,-281,-284,-266,-271,-283,-275,-283,-269,-292,-306,-344,-322,-338,-305]} 1. d4 {[%emt 0:00:00]} Nf6 {[%emt 0:00:00]} 2. c4 {[%emt 0:00:02]} e6 {[%emt 0:00:02]} 3. Nf3 {[%emt 0:00:02]} d5 {[%emt 0:00:00]} 4. Nc3 {[%emt 0:00:01]} c5 {[%emt 0:00:01]} 5. cxd5 {[%emt 0:00:03]} cxd4 {[%emt 0:00:01]} 6. Qxd4 {[%emt 0:00:01]} exd5 {[%emt 0:00:01]} 7. e4 {[%emt 0:00:01] D41: Queen's Gambit Declined: Semi-Tarrasch with 5 cxd5.} dxe4 {[%emt 0:00:25] seems to push 7...Nc6 aside.} 8. Qxd8+ {[%emt 0:00:03]} Kxd8 {[%emt 0:00:00]} 9. Ng5 {[%emt 0:00:01][%csl LRe4,LRf7] White is slightly better.} Be6 {[%emt 0:00:08]} 10. a3 {[%emt 0:00:02] Prevents Bb4.} Nbd7 {[%emt 0:00:11]} 11. g3 {[%emt 0:00:36] [#]} Rc8 $5 $146 {[%emt 0:01:29][%mdl 8] An interesting novelty.} ({Predecessor:} 11... Bc5 12. Nxe6+ fxe6 13. Bg2 Ne5 14. Ke2 Nd3 15. Rd1 Ke7 16. Nxe4 Nxc1+ 17. Raxc1 Nxe4 18. Bxe4 {½-½ (52) Vidit,S (2727)-Le,Q (2709) Kolkata 2021}) 12. Nxe6+ {[%emt 0:03:52]} fxe6 {[%emt 0:00:02]} 13. Bh3 {[%emt 0:02:31]} Ke7 {[%emt 0:04:51]} 14. O-O {[%emt 0:01:21][%mdl 1024] White has compensation.} Kf7 {[%emt 0:00:10]} 15. Bg2 {[%emt 0:01:51]} Rc4 {[%emt 0:00:37]} 16. Re1 {[%emt 0:01:10]} Nc5 {[%emt 0:00:35]} 17. Be3 {[%emt 0:00:06]} Nd3 {[%emt 0:00:41][%csl LRb2,LRe1]} 18. Re2 {[%emt 0:00:06]} Bc5 {[%emt 0:00:03]} 19. Bxc5 {[%emt 0:00:59]} Nxc5 {[%emt 0:00:10][%cal Bd3c5,Bc5b3,Bb3d4][%mdl 32]} 20. Nb5 {[%emt 0:01:24]} (20. Rd1 $11 {keeps the balance.}) 20... Rd8 $36 {[%emt 0:00:24][%mdl 2048] Keeping White busy.} 21. Nxa7 $2 {[%emt 0:00:02] [#] This costs White the game.} (21. Rae1 $17) 21... Nb3 $1 $19 {[%emt 0:00:14] Black has a decisive advantage.} 22. Rb1 {[%emt 0:00:56]} Nd4 {[%emt 0:00:28] Inhibits Nb5. Pair of Knights!} 23. Re3 {[%emt 0:00:14]} Ra4 {[%emt 0:00:10]} 24. Rc1 {[%emt 0:00:46]} Rxa7 {[%emt 0:00:33]} 25. Rc7+ {[%emt 0:00:02]} Rd7 {[%emt 0:01:22]} 26. Rxd7+ {[%emt 0:00:02]} Nxd7 {[%emt 0:00:00]} 27. Rxe4 {[%emt 0:00:09]} Nf5 {[%emt 0:00:27]} 28. Rb4 {[%emt 0:00:15]} Nd6 {[%emt 0:00:05]} 29. h4 {[%emt 0:00:02]} Ke7 {[%emt 0:00:18]} 30. Rg4 {[%emt 0:00:24]} g6 {[%emt 0:00:26]} 31. Rb4 {[%emt 0:01:10]} Nf6 {[%emt 0:00:26] Weighted Error Value: White=0.28 (precise) /Black=0.03 (flawless)} 0-1

[Event "MCCT Oslo Esports Cup 2022"]
[Site "Oslo"]
[Date "2022.04.20"]
[Round "7.3"]
[White "Hansen, Eric"]
[Black "Duda, Jan-Krzysztof"]
[Result "1/2-1/2"]
[ECO "C65"]
[WhiteElo "2606"]
[BlackElo "2750"]
[Annotator "TA"]
[PlyCount "171"]
[EventDate "2022.04.14"]
[EventType "tourn"]
[EventCountry "NOR"]
[SourceTitle "playchess.com"]
[Source "ChessBase"]
[SourceQuality "1"]
[TimeControl "900+10"]

{[%evp 41,171,0,0,0,0,0,0,0,0,0,0,0,0,0,0,0,0,0,0,0,0,0,0,0,0,0,0,0,0,0,0,0,0,0,0,0,0,0,0,0,0,0,0,0,0,0,0,0,0,0,0,0,0,0,0,0,0,0,0,0,0,0,4,0,0,0,8,8,31,0,70,70,70,70,70,70,123,160,143,0,26,39,34,9,9,0,0,0,6,0,0,0,0,0,0,0,0,0,0,0,0,0,0,0,0,0,0,0,8,8,8,8,8,8,8,8,8,8,8,8,8,8,8,8,8,8,8,8,8,8,8,8]} 1. e4 {[%emt 0:00:00]} e5 {[%emt 0:00:00]} 2. Nf3 {[%emt 0:00:01]} Nc6 {[%emt 0:00:01]} 3. Bb5 {[%emt 0:00:02]} Nf6 {[%emt 0:00:01]} 4. d3 {[%emt 0:00:01]} Bc5 {[%emt 0:00:01]} 5. O-O {[%emt 0:00:52]} Nd4 {[%emt 0:00:07]} 6. Nxd4 {[%emt 0:00:02]} Bxd4 {[%emt 0:00:00]} 7. c3 {[%emt 0:00:11]} Bb6 {[%emt 0:00:01]} 8. Ba4 {[%emt 0:00:02]} O-O {[%emt 0:00:07]} 9. Bg5 {[%emt 0:00:20]} d5 {[%emt 0:01:31]} 10. Nd2 {[%emt 0:00:27]} c6 {[%emt 0:00:31]} 11. Kh1 {[%emt 0:00:52]} h6 {[%emt 0:00:40]} 12. Bh4 {[%emt 0:00:03]} dxe4 {[%emt 0:00:30]} 13. dxe4 {[%emt 0:00:33]} Qe7 {[%emt 0:00:17]} 14. Qe2 {[%emt 0:00:12]} Bc7 {[%emt 0:01:11]} 15. Bb3 {[%emt 0:00:08]} a5 {[%emt 0:00:28]} 16. a4 {[%emt 0:01:02]} Be6 {[%emt 0:00:25]} 17. Bxe6 {[%emt 0:00:24]} Qxe6 {[%emt 0:00:00]} 18. Bxf6 {[%emt 0:00:13]} Qxf6 {[%emt 0:00:02]} 19. Nc4 {[%emt 0:00:02]} Rfd8 {[%emt 0:00:10]} 20. g3 {[%emt 0:00:09]} Qe6 {[%emt 0:00:09]} 21. Kg2 {[%emt 0:00:08]} g6 {[%emt 0:00:24]} 22. h4 {[%emt 0:00:02]} h5 {[%emt 0:00:02]} 23. Rad1 {[%emt 0:00:35]} Kg7 {[%emt 0:00:02]} 24. Rxd8 {[%emt 0:00:25]} Rxd8 {[%emt 0:00:00]} 25. Rb1 {[%emt 0:00:08]} Rd7 {[%emt 0:00:56]} 26. b3 {[%emt 0:00:55]} Qe7 {[%emt 0:02:34]} 27. Rb2 {[%emt 0:00:45]} Kh7 {[%emt 0:00:44]} 28. Rb1 {[%emt 0:06:28]} Kg7 {[%emt 0:00:03]} 29. Rb2 {[%emt 0:01:12]} Kh7 {[%emt 0:00:03]} 30. b4 {[%emt 0:00:00]} axb4 {[%emt 0:00:03]} 31. Rxb4 {[%emt 0:00:00]} Bd6 {[%emt 0:00:13]} 32. Rb1 {[%emt 0:00:07]} Bc5 {[%emt 0:00:42]} 33. a5 {[%emt 0:00:10]} Qe6 {[%emt 0:00:15]} 34. Rb2 {[%emt 0:00:18]} Kg7 {[%emt 0:00:06]} 35. Nd2 {[%emt 0:00:10]} Ba3 {[%emt 0:01:26]} 36. Rc2 $1 {[%emt 0:00:16]} Be7 {[%emt 0:01:01]} 37. Qc4 {[%emt 0:00:21]} Kf6 {[%emt 0:00:42]} 38. Qa4 {[%emt 0:00:45]} Kg7 {[%emt 0:00:33]} 39. Rb2 {[%emt 0:00:24]} g5 {[%emt 0:02:08]} 40. Qc4 {[%emt 0:01:19]} gxh4 {[%emt 0:00:14]} 41. Qxe6 {[%emt 0:00:03]} fxe6 {[%emt 0:00:00]} 42. Nc4 {[%emt 0:00:05]} hxg3 {[%emt 0:00:07]} 43. fxg3 {[%emt 0:00:26]} Bf6 {[%emt 0:00:11]} 44. Kf2 {[%emt 0:00:40]} Kg6 {[%emt 0:00:09]} 45. Ke2 {[%emt 0:00:18]} Kg5 {[%emt 0:00:36]} 46. Rb1 {[%emt 0:00:02]} Kg4 {[%emt 0:00:09]} 47. Rf1 {[%emt 0:00:02]} Bg7 {[%emt 0:00:57]} 48. Rf3 {[%emt 0:00:02]} Kg5 {[%emt 0:00:17]} 49. Nb6 {[%emt 0:00:16]} Rc7 {[%emt 0:00:25]} 50. Kf2 {[%emt 0:00:16]} Kg4 {[%emt 0:00:05]} 51. Kg2 {[%emt 0:00:04]} Re7 {[%emt 0:00:05]} 52. Rd3 {[%emt 0:00:15]} h4 {[%emt 0:00:50]} 53. gxh4 {[%emt 0:00:21]} Kxh4 {[%emt 0:00:00]} 54. Nd7 {[%emt 0:00:26]} Kg4 {[%emt 0:00:12]} 55. Rg3+ {[%emt 0:00:04]} Kf4 {[%emt 0:00:44]} (55... Kh5 $11 56. Rh3+ (56. Nc5 Bf8 $11) 56... Kg6) 56. Nc5 $14 {[%emt 0:00:01]} Bh6 $1 {[%emt 0:00:32]} 57. Rg6 {[%emt 0:00:24]} Bg5 $1 {[%emt 0:00:42]} ({Weaker is} 57... Rh7 58. Kf2 $16) 58. Kf2 {[%emt 0:00:29]} Bh4+ {[%emt 0:00:13]} (58... Re8 $1 $14) 59. Ke2 $16 {[%emt 0:00:00]} Rh7 {[%emt 0:00:02] [#]} 60. Kd3 {[%emt 0:00:24]} (60. Rg1 $1 $16) 60... Kf3 {[%emt 0:00:13]} (60... Bd8 $5 {[%cal Rh7h3]}) 61. Rxe6 {[%emt 0:00:26]} Bd8 $1 {[%emt 0:00:10]} 62. Rxe5 {[%emt 0:00:11]} Bxa5 {[%emt 0:00:06]} 63. Rf5+ {[%emt 0:00:02]} Kg4 {[%emt 0:00:02]} 64. Ne6 {[%emt 0:00:12]} Rd7+ {[%emt 0:00:02]} 65. Kc2 {[%emt 0:00:07]} Bb6 {[%emt 0:00:10]} 66. Rf6 {[%emt 0:00:17]} Be3 {[%emt 0:00:09]} 67. c4 {[%emt 0:00:07]} b5 {[%emt 0:00:08]} 68. c5 {[%emt 0:00:10]} Rd2+ {[%emt 0:00:19]} 69. Kc3 {[%emt 0:00:03]} Rf2 {[%emt 0:00:03]} 70. Rxf2 {[%emt 0:00:22]} Bxf2 {[%emt 0:00:00]} 71. Kd3 {[%emt 0:00:09]} Bg1 {[%emt 0:00:36]} 72. Kc3 {[%emt 0:00:11]} Be3 {[%emt 0:00:18]} 73. Kd3 {[%emt 0:00:05]} Bg1 {[%emt 0:00:01]} 74. Ke2 {[%emt 0:00:13]} b4 {[%emt 0:00:01]} 75. Kd3 {[%emt 0:00:02]} b3 {[%emt 0:00:04]} 76. Kc3 {[%emt 0:00:05]} b2 {[%emt 0:00:06]} 77. Kxb2 {[%emt 0:00:05]} Kf3 {[%emt 0:00:01]} 78. Ng5+ {[%emt 0:00:13]} Kf4 {[%emt 0:00:01]} 79. Nh3+ {[%emt 0:00:06]} Kxe4 {[%emt 0:00:00]} 80. Nxg1 {[%emt 0:00:01]} Kd5 {[%emt 0:00:01]} 81. Kc3 {[%emt 0:00:02]} Kxc5 {[%emt 0:00:00]} 82. Ne2 {[%emt 0:00:02]} Kd6 {[%emt 0:00:00]} 83. Nf4 {[%emt 0:00:01]} c5 {[%emt 0:00:00]} 84. Kc4 {[%emt 0:00:01]} Ke5 {[%emt 0:00:01]} 85. Nd3+ {[%emt 0:00:00]} Ke4 {[%emt 0:00:00]} 86. Nxc5+ {[%emt 0:00:00]} 1/2-1/2

[Event "MCCT Oslo Esports Cup 2022"]
[Site "Oslo"]
[Date "2022.04.20"]
[Round "7.4"]
[White "Van Foreest, Jorden"]
[Black "Le, Quang Liem"]
[Result "1/2-1/2"]
[ECO "C82"]
[WhiteElo "2714"]
[BlackElo "2709"]
[Annotator "TA"]
[PlyCount "142"]
[EventDate "2022.04.14"]
[EventType "tourn"]
[EventCountry "NOR"]
[SourceTitle "playchess.com"]
[Source "ChessBase"]
[SourceQuality "1"]
[TimeControl "900+10"]

{[%evp 32,142,0,0,6,0,0,0,0,0,0,0,0,0,21,30,39,5,15,11,33,12,16,8,14,8,7,14,13,0,27,16,97,93,118,24,27,29,38,49,60,8,8,8,8,8,8,8,8,8,8,8,136,131,125,8,62,62,62,8,8,8,8,8,62,62,202,8,8,8,8,8,180,8,8,8,8,8,8,0,4137,4137,29979,8,8,8,8,8,8,0,29979,0,8,0,8,8,8,8,8,8,8,8,8,8,8,8,8,0,0,0,0,0,0]} 1. e4 {[%emt 0:00:00]} e5 {[%emt 0:00:00]} 2. Nf3 {[%emt 0:00:03]} Nc6 {[%emt 0:00:02]} 3. Bb5 {[%emt 0:00:02]} a6 {[%emt 0:00:00]} 4. Ba4 {[%emt 0:00:01]} Nf6 {[%emt 0:00:02]} 5. O-O {[%emt 0:00:02]} Nxe4 {[%emt 0:00:01]} 6. d4 {[%emt 0:00:03]} b5 {[%emt 0:00:01]} 7. Bb3 {[%emt 0:00:01]} d5 {[%emt 0:00:01]} 8. dxe5 {[%emt 0:00:02]} Be6 {[%emt 0:00:01]} 9. c3 {[%emt 0:00:02]} Bc5 {[%emt 0:00:02]} 10. Nbd2 {[%emt 0:00:02]} O-O {[%emt 0:00:01]} 11. Bc2 {[%emt 0:00:02]} Nxf2 {[%emt 0:00:01]} 12. Rxf2 {[%emt 0:00:01]} f6 {[%emt 0:00:01]} 13. exf6 {[%emt 0:00:08]} Bxf2+ {[%emt 0:00:04]} 14. Kxf2 {[%emt 0:00:02]} Qxf6 {[%emt 0:00:00]} 15. Nf1 {[%emt 0:00:12]} Ne5 {[%emt 0:00:19]} 16. Be3 {[%emt 0:00:21]} Rae8 {[%emt 0:01:17]} 17. Bc5 {[%emt 0:00:08]} Nxf3 {[%emt 0:00:22] C82: Open Ruy Lopez: 9 c3 without 9...Be7.} 18. gxf3 {[%emt 0:00:05] The board is on fire.} Rf7 {[%emt 0:00:10]} 19. Ng3 {[%emt 0:00:20]} Bg4 $1 {[%emt 0:00:24][%cal Rg4f3]} 20. Kg1 {[%emt 0:00:04]} ({But not} 20. Qxd5 Bxf3 21. Qf5 Qxf5 22. Nxf5 Re2+ 23. Kxf3 Rxc2 $15) 20... Qxf3 {[%emt 0:00:33]} 21. Qxf3 {[%emt 0:00:03]} Rxf3 {[%emt 0:00:00]} 22. Rf1 {[%emt 0:00:02] [#]} h5 $146 {[%emt 0:01:16]} ({Predecessor:} 22... Rxf1+ 23. Kxf1 Re6 24. b4 h5 25. h4 Rf6+ 26. Bf2 c6 27. Ne2 Bf5 28. Bd1 Bh3+ {½-½ (57) Pospisil,L (2481)-Krueger,M (2317) ICCF email 2019}) 23. Rxf3 {[%emt 0:00:37]} Bxf3 {[%emt 0:00:00]} 24. Bg6 {[%emt 0:00:48]} (24. Kf2 $5 {[%cal Rf2f3]} Bg4 25. h3 Bxh3 26. Nxh5 $14) 24... Re6 {[%emt 0:01:11]} 25. Bf5 {[%emt 0:00:04] This bishop pair is nice.} Rc6 {[%emt 0:00:52]} 26. Bd4 {[%emt 0:01:05]} Bg4 {[%emt 0:00:15]} 27. Bxg4 {[%emt 0:01:23]} hxg4 {[%emt 0:00:00]} 28. Nf5 {[%emt 0:01:05]} Re6 {[%emt 0:00:05] Inhibits Ne7+.} 29. Ne3 {[%emt 0:00:58]} c6 {[%emt 0:00:38]} 30. Kf2 {[%emt 0:00:07][%mdl 1024] White has compensation.} Re4 {[%emt 0:00:11]} 31. b4 {[%emt 0:00:44]} Rf4+ {[%emt 0:01:05]} (31... Kf7 $11) 32. Kg3 $16 {[%emt 0:00:23]} Rf3+ {[%emt 0:00:03]} 33. Kxg4 {[%emt 0:00:43]} (33. Kg2 $1 $16) 33... Rf2 $11 {[%emt 0:00:03][%csl LRa2,LRh2]} 34. h4 {[%emt 0:00:02][%cal Oe3d5]} Rxa2 {[%emt 0:00:11]} 35. Nf5 {[%emt 0:00:10]} Kf7 {[%emt 0:00:37] Against Ne7} 36. Bxg7 {[%emt 0:00:31]} (36. Nd6+ $1 $14 Kf8 37. Nb7) 36... a5 $1 {[%emt 0:00:03]} 37. bxa5 {[%emt 0:00:02] h5 is the strong threat.} c5 $1 {[%emt 0:00:21]} 38. h5 {[%emt 0:00:19]} Rxa5 {[%emt 0:00:16]} 39. h6 {[%emt 0:00:04]} Kg6 {[%emt 0:00:05]} 40. Ne7+ {[%emt 0:00:46]} Kh7 {[%emt 0:00:21]} 41. Nxd5 {[%emt 0:00:04] Kg5 would kill now.} Ra1 {[%emt 0:00:58]} (41... b4 $1 $11 {remains equal.}) 42. Kf5 {[%emt 0:03:30][%cal Rd5f6]} Rf1+ {[%emt 0:00:04]} 43. Ke4 {[%emt 0:00:11]} (43. Ke5 $16) 43... b4 {[%emt 0:00:25]} (43... Re1+ $11 44. Ne3 Rh1) 44. c4 $1 $14 {[%emt 0:00:06] aiming for Nf6+.} ({Don't play} 44. cxb4 cxb4 45. Kd3 (45. Nxb4 Rg1 $11) 45... b3 $11) 44... b3 $1 {[%emt 0:00:47]} 45. Kd3 {[%emt 0:00:08]} ({Better is} 45. Nb6 $1 $14) 45... Rf3+ $11 {[%emt 0:00:26]} 46. Ne3 {[%emt 0:01:16]} Rh3 {[%emt 0:00:09]} 47. Kd2 {[%emt 0:00:15]} Kg6 {[%emt 0:00:17]} ({Black should play} 47... Rh2+ $11 48. Kc1 Re2) 48. Nd1 $1 $14 {[%emt 0:00:22]} Kf5 {[%emt 0:00:31]} (48... Kf7 $14) 49. Kc1 $2 {[%emt 0:00:04]} ({Only move:} 49. Bf8 $1 $18) 49... Rh2 $11 {[%emt 0:00:19]} 50. Ne3+ {[%emt 0:00:18]} Kg6 $1 {[%emt 0:00:12]} 51. Kb1 {[%emt 0:00:44]} Kh7 $2 {[%emt 0:00:15]} (51... Re2 $11 {and Black is okay.}) 52. Nd5 $2 {[%emt 0:00:08]} (52. Bf8 $18) 52... Rh4 {[%emt 0:00:35]} 53. Nb6 {[%emt 0:00:06] And now Kb2 would win.} Rh2 {[%emt 0:00:03]} 54. Bf8 {[%emt 0:00:08]} Rc2 {[%emt 0:01:10]} 55. Bg7 {[%emt 0:00:11]} Kg6 $2 {[%emt 0:00:27][%mdl 8192]} (55... Rh2 $11) 56. Nd7 $1 $18 {[%emt 0:00:16]} Kh7 {[%emt 0:00:03]} 57. Ne5 $2 {[%emt 0:00:17]} (57. Nf8+ $1 Kg8 58. Be5 $1 Kxf8 59. h7 Rh2 60. Bxh2 Kg7 61. h8=R Kxh8 62. Bd6) 57... Re2 $11 {[%emt 0:00:16]} 58. Ng4 {[%emt 0:00:59] Hoping for Nf6+.} Rc2 {[%emt 0:00:04]} 59. Nf6+ {[%emt 0:00:59]} Kg6 {[%emt 0:00:03]} 60. Nd7 $2 {[%emt 0:00:00][%mdl 8192]} (60. Ne4 $11) 60... Kh7 {[%emt 0:00:02]} 61. Nb6 $2 {[%emt 0:00:05]} (61. Nf8+ $1 {mates} Kg8 62. Be5 $1 Kxf8 63. h7 Rh2 64. Bxh2 Kg7 65. Bg1 Kxh7 66. Bxc5) 61... Kg6 {[%emt 0:00:15] The position is equal.} 62. Bf8 {[%emt 0:00:02]} Kh7 {[%emt 0:00:05]} 63. Bxc5 {[%emt 0:00:35] Threatens to win with Be3.} Kxh6 {[%emt 0:00:03]} 64. Bd6 {[%emt 0:00:04]} Kg6 {[%emt 0:00:18]} 65. c5 {[%emt 0:00:01][%cal Bc4c5,Bc5c6][%mdl 32]} Kf5 {[%emt 0:00:12]} 66. Nd5 {[%emt 0:00:02] White threatens Ne3+ and mate.} Rd2 {[%emt 0:00:27] [#]} 67. c6 $1 {[%emt 0:00:26] White wants to mate with c7.} Ke6 {[%emt 0:00:16] [#]} (67... Rxd5 $2 {[#]} 68. c7 $1 Rxd6 69. c8=Q+ $18) (67... Rc2 68. Nb4) 68. c7 $1 {[%emt 0:00:29]} Rc2 {[%emt 0:00:01]} 69. Ne3 {[%emt 0:00:22]} Kxd6 {[%emt 0:00:03]} 70. Nxc2 {[%emt 0:00:00]} bxc2+ {[%emt 0:00:01]} 71. Kxc2 {[%emt 0:00:00]} Kxc7 {[%emt 0:00:01] Weighted Error Value: White=0.41/Black=0.38} 1/2-1/2